fUST/lending_fUST_20250921
["ID","MTS","AMOUNT","RATE_DAILY","PERIOD"]
[386700232,1758461446809,-480.0,0.0002,2]
[386700234,1758461446820,-480.0,0.0002,2]
[386700236,1758461446831,-480.0,0.0002,2]
[386700239,1758461446842,-480.0,0.0002,2]
[386700241,1758461446852,-480.0,0.0002,2]
[386700243,1758461446863,-480.0,0.0002,2]
[386700245,1758461446873,-480.0,0.0002,2]
[386700247,1758461446884,-480.0,0.0002,2]
[386700249,1758461446894,-579.6436864,0.0002,2]
[386700251,1758461446905,-480.0,0.0002,2]
[386700253,1758461446915,-480.0,0.0002,2]
[386700255,1758461446925,-480.0,0.0002,2]
[386700258,1758461446936,-151.0,0.0002,2]
[386700260,1758461446947,-480.0,0.0002,2]
[386700262,1758461446958,-480.0,0.0002,2]
[386700263,1758461446969,-480.0,0.0002,2]
[386700264,1758461446980,-480.0,0.0002,2]
[386700265,1758461446990,-480.0,0.0002,2]
[386700266,1758461447001,-480.0,0.0002,2]
[386700267,1758461447011,-480.0,0.0002,2]
[386700268,1758461447022,-480.0,0.0002,2]
[386700269,1758461447033,-480.0,0.0002,2]
[386700270,1758461447044,-480.0,0.0002,2]
[386700271,1758461447054,-480.0,0.0002,2]
[386700272,1758461447065,-480.0,0.0002,2]
[386700273,1758461447075,-480.0,0.0002,2]
[386700274,1758461447086,-480.0,0.0002,2]
[386700275,1758461447096,-480.0,0.0002,2]
[386700276,1758461447107,-154.76423381,0.0002,2]
[386700277,1758461447117,-173.704372,0.0002,2]
[386700278,1758461447128,-157.535577,0.0002,2]
[386700279,1758461447139,-480.0,0.0002,2]
[386700280,1758461447150,-895.05,0.0002,2]
[386700281,1758461447160,-480.0,0.0002,2]
[386700282,1758461447171,-480.0,0.0002,2]
[386700283,1758461447182,-480.0,0.0002,2]
[386700284,1758461447193,-480.0,0.0002,2]
[386700286,1758461447204,-480.0,0.0002,2]
[386700288,1758461447214,-173.131693,0.0002,2]
[386700290,1758461447224,-173.131693,0.0002,2]
[386700293,1758461447235,-1657.066154,0.0002,2]
[386700295,1758461447246,-480.0,0.0002,2]
[386700297,1758461447257,-488.78490244,0.0002,2]
[386700299,1758461447267,-480.0,0.0002,2]
[386700301,1758461447277,-480.0,0.0002,2]
[386700303,1758461447288,-480.0,0.0002,2]
[386700306,1758461447298,-480.0,0.0002,2]
[386700308,1758461447309,-593.69,0.0002,2]
[386700310,1758461447320,-166.11648183,0.0002,2]
[386700312,1758461447331,-500.0,0.0002,2]
[386700314,1758461447341,-151.44138395,0.0002,2]
[386700316,1758461447352,-158.35257327,0.0002,2]
[386700336,1758461447529,-192.44332133,0.0002,2]
[386700339,1758461447547,-151.0,0.0002,2]
[386700341,1758461447558,-151.0,0.0002,2]
[386700343,1758461447567,-151.0,0.0002,2]
[386700345,1758461447577,-500.0,0.0002,2]
[386700347,1758461447586,-151.0,0.0002,2]
[386700349,1758461447595,-151.0,0.0002,2]
[386700352,1758461447605,-199.08738968,0.0002,2]
[386700354,1758461447615,-151.0,0.0002,2]
[386700356,1758461447624,-151.0,0.0002,2]
[386700358,1758461447634,-500.0,0.0002,2]
[386700360,1758461447643,-500.0,0.0002,2]
[386700362,1758461447652,-345.54669654,0.0002,2]
[386700364,1758461447662,-449.0,0.0002,2]
[386700366,1758461447671,-449.0,0.0002,2]
[386700368,1758461447680,-705.92,0.0002,2]
[386700370,1758461447689,-480.0,0.0002,2]
[386700372,1758461447698,-151.0,0.0002,2]
[386700374,1758461447708,-151.0,0.0002,2]
[386700376,1758461447718,-151.10286639,0.0002,2]
[386700378,1758461447727,-151.31375165,0.0002,2]
[386700380,1758461447737,-151.12302328,0.0002,2]
[386700381,1758461447746,-151.0,0.0002,2]
[386700384,1758461447755,-229.12008207,0.0002,2]
[386700385,1758461447765,-480.0,0.0002,2]
[386700387,1758461447774,-151.0,0.0002,2]
[386700390,1758461447784,-151.0,0.0002,2]
[386700391,1758461447793,-151.0,0.0002,2]
[386700393,1758461447802,-480.0,0.0002,2]
[386700396,1758461447812,-480.0,0.0002,2]
[386700397,1758461447821,-932.86,0.0002,2]
[386700399,1758461447830,-1393.72,0.0002,2]
[386700402,1758461447839,-151.0,0.0002,2]
[386700404,1758461447849,-151.0,0.0002,2]
[386700405,1758461447858,-480.0,0.0002,2]
[386700407,1758461447868,-527.95415741,0.0002,2]
[386700409,1758461447877,-500.0,0.0002,2]
[386700412,1758461447887,-500.0,0.0002,2]
[386700414,1758461447896,-492.44740963,0.0002,2]
[386700416,1758461447905,-480.0,0.0002,2]
[386700417,1758461447914,-480.0,0.0002,2]
[386700419,1758461447923,-480.0,0.0002,2]
[386700421,1758461447933,-480.0,0.0002,2]
[386700423,1758461447942,-480.0,0.0002,2]
[386700425,1758461447952,-489.70740089,0.0002,2]
[386700428,1758461447961,-581.27,0.0002,2]
[386700429,1758461447971,-480.0,0.0002,2]
[386700431,1758461447980,-439.51047299,0.0002,2]
[386700433,1758461447990,-486.10266892,0.0002,2]
[386700436,1758461447999,-151.0,0.0002,2]
[386700438,1758461448008,-763.2,0.0002,2]
[386700439,1758461448018,-1574.38,0.0002,2]
[386700442,1758461448027,-480.0,0.0002,2]
[386700443,1758461448037,-480.0,0.0002,2]
[386700445,1758461448047,-480.0,0.0002,2]
[386700447,1758461448056,-480.0,0.0002,2]
[386700449,1758461448065,-480.0,0.0002,2]
[386700451,1758461448074,-480.0,0.0002,2]
[386700453,1758461448083,-1050.62,0.0002,2]
[386700455,1758461448095,-480.0,0.0002,2]
[386700457,1758461448104,-480.0,0.0002,2]
[386700459,1758461448114,-480.0,0.0002,2]
[386700462,1758461448123,-480.0,0.0002,2]
[386700463,1758461448133,-480.0,0.0002,2]
[386700466,1758461448142,-1000.0,0.0002,2]
[386700467,1758461448152,-1000.0,0.0002,2]
[386700469,1758461448162,-1000.0,0.0002,2]
[386700471,1758461448171,-1000.0,0.0002,2]
[386700474,1758461448181,-1000.0,0.0002,2]
[386700476,1758461448190,-1000.0,0.0002,2]
[386700478,1758461448200,-1000.0,0.0002,2]
[386700480,1758461448209,-1000.0,0.0002,2]
[386700482,1758461448218,-1000.0,0.0002,2]
[386700484,1758461448227,-1000.0,0.0002,2]
[386700485,1758461448236,-1000.0,0.0002,2]
[386700487,1758461448246,-1000.0,0.0002,2]
[386700489,1758461448255,-1000.0,0.0002,2]
[386700492,1758461448265,-916.21,0.0002,2]
[386700494,1758461448274,-1000.0,0.0002,2]
[386700495,1758461448284,-480.0,0.0002,2]
[386700497,1758461448293,-1000.0,0.0002,2]
[386700499,1758461448303,-1000.0,0.0002,2]
[386700502,1758461448312,-1000.0,0.0002,2]
[386700504,1758461448322,-1000.0,0.0002,2]
[386700505,1758461448331,-1000.0,0.0002,2]
[386700508,1758461448340,-1000.0,0.0002,2]
[386700509,1758461448349,-480.0,0.0002,2]
[386700511,1758461448362,-1000.0,0.0002,2]
[386700514,1758461448372,-1000.0,0.0002,2]
[386700516,1758461448381,-1000.0,0.0002,2]
[386700518,1758461448390,-1000.0,0.0002,2]
[386700520,1758461448399,-1000.0,0.0002,2]
[386700522,1758461448408,-1000.0,0.0002,2]
[386700524,1758461448418,-1000.0,0.0002,2]
[386700525,1758461448427,-1000.0,0.0002,2]
[386700528,1758461448437,-1000.0,0.0002,2]
[386700530,1758461448446,-1000.0,0.0002,2]
[386700532,1758461448456,-1000.0,0.0002,2]
[386700534,1758461448465,-480.0,0.0002,2]
[386700536,1758461448475,-1000.0,0.0002,2]
[386700538,1758461448484,-1000.0,0.0002,2]
[386700539,1758461448494,-754.606825,0.0002,2]
[386700541,1758461448503,-2865.45,0.0002,2]
[386700543,1758461448512,-480.0,0.0002,2]
[386700545,1758461448522,-14480.06960632,0.0002,2]
[386700547,1758461448532,-826.07,0.0002,2]
[386700549,1758461448542,-28619.36834208,0.0002,20]
[386700551,1758461448552,-20000.0,0.0002,2]
[386700553,1758461448562,-1180.49,0.0002,2]
[386700555,1758461448572,-480.0,0.0002,2]
[386700557,1758461448582,-480.0,0.0002,2]
[386700559,1758461448592,-480.0,0.0002,2]
[386700561,1758461448601,-170.380477,0.0002,2]
[386700563,1758461448612,-480.0,0.0002,2]
[386700565,1758461448621,-170.380477,0.0002,2]
[386700568,1758461448631,-480.0,0.0002,2]
[386700569,1758461448640,-480.0,0.0002,2]
[386700571,1758461448650,-480.0,0.0002,2]
[386700574,1758461448660,-170.380477,0.0002,2]
[386700575,1758461448670,-480.0,0.0002,2]
[386700577,1758461448679,-170.380477,0.0002,2]
[386700580,1758461448688,-480.0,0.0002,2]
[386700582,1758461448698,-245.61693289,0.0002,2]
[386700584,1758461448708,-480.0,0.0002,2]
[386700586,1758461448718,-480.0,0.0002,2]
[386700588,1758461448728,-480.0,0.0002,2]
[386700590,1758461448737,-1701.83,0.0002,2]
[386700592,1758461448747,-488.61,0.0002,2]
[386700594,1758461448756,-1863.95,0.0002,2]
[386700596,1758461448766,-480.0,0.0002,2]
[386700598,1758461448776,-480.0,0.0002,2]
[386700600,1758461448785,-480.0,0.0002,2]
[386700602,1758461448795,-480.0,0.0002,2]
[386700604,1758461448804,-480.0,0.0002,2]
[386700606,1758461448813,-480.0,0.0002,2]
[386700608,1758461448822,-494.22,0.0002,2]
[386700610,1758461448831,-480.0,0.0002,2]
[386700612,1758461448841,-656.57,0.0002,2]
[386700614,1758461448850,-514.7,0.0002,2]
[386700616,1758461448860,-480.0,0.0002,2]
[386700618,1758461448869,-151.0,0.0002,2]
[386700620,1758461448879,-151.0,0.0002,2]
[386700622,1758461448888,-878.98,0.0002,2]
[386700624,1758461448898,-480.0,0.0002,2]
[386700626,1758461448907,-480.0,0.0002,2]
[386700628,1758461448917,-480.0,0.0002,2]
[386700630,1758461448927,-151.0,0.0002,2]
[386700632,1758461448937,-4000.0,0.0002,4]
[386700634,1758461448946,-480.0,0.0002,2]
[386700636,1758461448955,-481.20154404,0.0002,2]
[386700638,1758461448965,-480.0,0.0002,2]
[386700640,1758461448974,-480.0,0.0002,2]
[386700642,1758461448984,-8703.42,0.0002,2]
[386700644,1758461448994,-480.0,0.0002,2]
[386700646,1758461449003,-418.81688739,0.0002,2]
[386700648,1758461449013,-151.0,0.0002,2]
[386700650,1758461449022,-151.0,0.0002,2]
[386700652,1758461449033,-151.0,0.0002,2]
[386700654,1758461449042,-151.0,0.0002,2]
[386700656,1758461449051,-151.0,0.0002,2]
[386700658,1758461449061,-151.0,0.0002,2]
[386700660,1758461449071,-560.08372906,0.0002,2]
[386700662,1758461449080,-480.0,0.0002,2]
[386700664,1758461449090,-826.17,0.0002,2]
[386700666,1758461449099,-480.0,0.0002,2]
[386700668,1758461449110,-151.0,0.0002,2]
[386700670,1758461449119,-151.0,0.0002,2]
[386700672,1758461449129,-195.75892033,0.0002,2]
[386700674,1758461449138,-287.921919,0.0002,2]
[386700676,1758461449148,-480.0,0.0002,2]
[386700678,1758461449157,-779.973145,0.00020021,2]
[386700680,1758461449167,-1000.0,0.00020021,2]
[386700682,1758461449177,-500.0,0.00020021,2]
[386700684,1758461449188,-1000.0,0.00020021,2]
[386700686,1758461449198,-1000.0,0.00020021,2]
[386700688,1758461449208,-971.5733539,0.00020021,2]
[386700690,1758461449218,-1039.7531653,0.00020021,2]
[386700692,1758461449227,-1000.0,0.00020021,2]
[386700694,1758461449236,-1011.0021489,0.00020021,2]
[386700696,1758461449246,-1000.0,0.00020021,2]
[386700698,1758461449255,-1000.0,0.00020021,2]
[386700700,1758461449264,-1005.24288065,0.00020021,2]
[386700702,1758461449273,-505.03476256,0.00020021,2]
[386700704,1758461449283,-1000.0,0.00020021,2]
[386700706,1758461449292,-1000.0,0.00020021,2]
[386700708,1758461449301,-1000.0,0.00020021,2]
[386700710,1758461449311,-1000.0,0.00020021,2]
[386700712,1758461449320,-310.0,0.00020055,2]
[386700714,1758461449330,-310.0,0.00020077,2]
[386700716,1758461449341,-310.0,0.00020112,2]
[386700718,1758461449351,-310.0,0.00020186,2]
[386700720,1758461449366,-18261.27688406,0.0002019,2]
[386700722,1758461449385,-1234.74093426,0.000202,2]
[386700724,1758461449395,-251.58998818,0.000202,2]
[386700726,1758461449405,-969.74385817,0.00020201,2]
[386700728,1758461449414,-324.0,0.00020219,3]
[386700730,1758461449424,-160.0,0.0002022,2]
[386700732,1758461449434,-160.0,0.0002022,2]
[386700734,1758461449443,-160.0,0.0002022,2]
[386700736,1758461449452,-160.0,0.0002022,2]
[386700738,1758461449462,-160.0,0.0002022,2]
[386700740,1758461449471,-848.42763433,0.0002022,2]
[386700742,1758461449481,-160.0,0.0002022,2]
[386700744,1758461449490,-233.52200025,0.0002022,2]
[386700746,1758461449499,-417.15472785,0.0002022,2]
[386700748,1758461449509,-160.0,0.0002022,2]
[386700750,1758461449519,-160.0,0.0002022,2]
[386700752,1758461449528,-160.0,0.0002022,2]
[386700754,1758461449537,-160.0,0.0002022,2]
[386700755,1758461449547,-404.62448614,0.00020221,2]
[386700757,1758461449557,-310.0,0.00020222,2]
[386700760,1758461449567,-2153.50787721,0.00020261,2]
[386700762,1758461449576,-480.0,0.00020273,2]
[386700764,1758461449586,-480.0,0.00020273,2]
[386700766,1758461449595,-480.0,0.00020273,2]
[386700768,1758461449605,-480.0,0.00020273,2]
[386700770,1758461449615,-480.0,0.00020273,2]
[386700772,1758461449625,-480.0,0.00020273,2]
[386700774,1758461449635,-480.0,0.00020273,2]
[386700776,1758461449644,-497.46602435,0.00020273,2]
[386700778,1758461449654,-480.0,0.00020273,2]
[386700780,1758461449664,-480.0,0.00020273,2]
[386700782,1758461449673,-480.0,0.00020273,2]
[386700784,1758461449683,-480.0,0.00020273,2]
[386700786,1758461449692,-480.0,0.00020273,2]
[386700788,1758461449702,-248.50459044,0.00020273,2]
[386700790,1758461449711,-480.0,0.00020273,2]
[386700792,1758461449720,-480.0,0.00020273,2]
[386700794,1758461449730,-480.0,0.00020273,2]
[386700796,1758461449739,-480.0,0.00020273,2]
[386700798,1758461449749,-480.0,0.00020273,2]
[386700800,1758461449758,-480.0,0.00020273,2]
[386700802,1758461449768,-480.0,0.00020273,2]
[386700804,1758461449778,-480.0,0.00020273,2]
[386700806,1758461449788,-480.0,0.00020273,2]
[386700808,1758461449797,-480.0,0.00020273,2]
[386700810,1758461449807,-480.0,0.00020273,2]
[386700812,1758461449816,-480.0,0.00020273,2]
[386700814,1758461449825,-480.0,0.00020273,2]
[386700816,1758461449834,-480.0,0.00020273,2]
[386700818,1758461449844,-480.0,0.00020273,2]
[386700820,1758461449853,-480.0,0.00020273,2]
[386700822,1758461449863,-480.0,0.00020273,2]
[386700824,1758461449874,-480.0,0.00020273,2]
[386700826,1758461449883,-151.0,0.00020273,2]
[386700828,1758461449894,-480.0,0.00020273,2]
[386700830,1758461449904,-480.0,0.00020273,2]
[386700832,1758461449915,-480.0,0.00020273,2]
[386700834,1758461449924,-480.0,0.00020273,2]
[386700836,1758461449934,-548.41654058,0.00020273,2]
[386700838,1758461449945,-480.0,0.00020273,2]
[386700840,1758461449955,-480.0,0.00020273,2]
[386700842,1758461449964,-480.0,0.00020273,2]
[386700844,1758461449973,-233.09227744,0.00020273,2]
[386700846,1758461449982,-480.0,0.00020273,2]
[386700848,1758461449992,-480.0,0.00020273,2]
[386700850,1758461450001,-492.7461765,0.00020273,2]
[386700852,1758461450011,-480.0,0.00020273,2]
[386700854,1758461450020,-480.0,0.00020273,2]
[386700856,1758461450031,-480.0,0.00020273,2]
[386700858,1758461450040,-895.05,0.00020273,2]
[386700860,1758461450049,-480.0,0.00020273,2]
[386700862,1758461450059,-492.57521216,0.00020273,2]
[386700864,1758461450068,-480.0,0.00020273,2]
[386700866,1758461450077,-480.0,0.00020273,2]
[386700868,1758461450086,-480.0,0.00020273,2]
[386700870,1758461450095,-173.131693,0.00020273,2]
[386700872,1758461450105,-173.131693,0.00020273,2]
[386700874,1758461450114,-480.0,0.00020273,2]
[386700876,1758461450123,-480.0,0.00020273,2]
[386700878,1758461450134,-480.0,0.00020273,2]
[386700880,1758461450143,-480.0,0.00020273,2]
[386700882,1758461450152,-480.0,0.00020273,2]
[386700884,1758461450162,-593.69,0.00020273,2]
[386700886,1758461450171,-705.92,0.00020273,2]
[386700888,1758461450180,-496.49513914,0.00020273,2]
[386700890,1758461450190,-167.466942,0.00020273,2]
[386700892,1758461450199,-480.0,0.00020273,2]
[386700894,1758461450208,-480.0,0.00020273,2]
[386700896,1758461450217,-480.0,0.00020273,2]
[386700898,1758461450227,-932.86,0.00020273,2]
[386700900,1758461450236,-1393.72,0.00020273,2]
[386700901,1758461450246,-480.0,0.00020273,2]
[386700902,1758461450255,-480.0,0.00020273,2]
[386700903,1758461450264,-565.65795806,0.00020273,2]
[386700904,1758461450274,-480.0,0.00020273,2]
[386700905,1758461450284,-530.73459068,0.00020273,2]
[386700906,1758461450293,-581.27,0.00020273,2]
[386700907,1758461450303,-491.3761596,0.00020273,2]
[386700908,1758461450312,-151.0,0.00020273,2]
[386700909,1758461450321,-763.2,0.00020273,2]
[386700910,1758461450330,-1574.38,0.00020273,2]
[386700911,1758461450340,-480.0,0.00020273,2]
[386700912,1758461450350,-480.0,0.00020273,2]
[386700913,1758461450364,-480.0,0.00020273,2]
[386700914,1758461450373,-480.0,0.00020273,2]
[386700915,1758461450383,-480.0,0.00020273,2]
[386700916,1758461450392,-480.0,0.00020273,2]
[386700917,1758461450401,-1050.62,0.00020273,2]
[386700918,1758461450410,-591.81434918,0.00020273,2]
[386700919,1758461450419,-480.0,0.00020273,2]
[386700920,1758461450428,-480.0,0.00020273,2]
[386700921,1758461450438,-480.0,0.00020273,2]
[386700922,1758461450448,-480.0,0.00020273,2]
[386700923,1758461450457,-916.21,0.00020273,2]
[386700924,1758461450467,-480.0,0.00020273,2]
[386700925,1758461450476,-480.0,0.00020273,2]
[386700926,1758461450486,-480.0,0.00020273,2]
[386700927,1758461450495,-2865.45,0.00020273,2]
[386700928,1758461450504,-480.0,0.00020273,2]
[386700929,1758461450514,-826.07,0.00020273,2]
[386700930,1758461450524,-1180.49,0.00020273,2]
[386700931,1758461450535,-501.39005476,0.00020273,2]
[386700932,1758461450546,-338.67,0.00020273,2]
[386700933,1758461450555,-480.0,0.00020273,2]
[386700934,1758461450565,-170.380477,0.00020273,2]
[386700935,1758461450574,-480.0,0.00020273,2]
[386700936,1758461450583,-170.380477,0.00020273,2]
[386700937,1758461450593,-480.0,0.00020273,2]
[386700938,1758461450602,-188.30191902,0.00020273,2]
[386700939,1758461450611,-170.380477,0.00020273,2]
[386700940,1758461450620,-480.0,0.00020273,2]
[386700941,1758461450630,-480.0,0.00020273,2]
[386700942,1758461450639,-170.380477,0.00020273,2]
[386700943,1758461450648,-480.0,0.00020273,2]
[386700944,1758461450658,-488.31964523,0.00020273,2]
[386700945,1758461450667,-480.0,0.00020273,2]
[386700946,1758461450677,-1701.83,0.00020273,2]
[386700947,1758461450687,-488.61,0.00020273,2]
[386700948,1758461450818,-1863.95,0.00020273,2]
[386700949,1758461450832,-480.0,0.00020273,2]
[386700950,1758461450842,-488.55127161,0.00020273,2]
[386700951,1758461450851,-480.0,0.00020273,2]
[386700952,1758461450861,-480.0,0.00020273,2]
[386700953,1758461450870,-480.0,0.00020273,2]
[386700954,1758461450880,-480.0,0.00020273,2]
[386700955,1758461450889,-494.22,0.00020273,2]
[386700956,1758461450898,-485.8674501,0.00020273,2]
[386700957,1758461450908,-656.57,0.00020273,2]
[386700958,1758461450917,-514.7,0.00020273,2]
[386700959,1758461450927,-480.0,0.00020273,2]
[386700960,1758461450936,-878.98,0.00020273,2]
[386700961,1758461450946,-423.06445261,0.00020273,2]
[386700962,1758461450956,-480.0,0.00020273,2]
[386700963,1758461450966,-480.0,0.00020273,2]
[386700964,1758461450975,-480.0,0.00020273,2]
[386700965,1758461450984,-409.06575507,0.00020273,2]
[386700966,1758461450994,-8703.42,0.00020273,2]
[386700967,1758461451003,-480.0,0.00020273,2]
[386700968,1758461451013,-151.0,0.00020273,2]
[386700969,1758461451022,-151.0,0.00020273,2]
[386700970,1758461451031,-193.439289,0.00020273,2]
[386700971,1758461451041,-480.0,0.00020273,2]
[386700972,1758461451050,-826.17,0.00020273,2]
[386700973,1758461451059,-480.0,0.00020273,2]
[386700975,1758461451068,-151.0,0.00020273,2]
[386700977,1758461451077,-480.0,0.00020273,2]
[386700979,1758461451087,-409.4,0.00020274,2]
[386700981,1758461451096,-500.0,0.00020274,2]
[386700982,1758461451105,-500.0,0.00020274,2]
[386700983,1758461451115,-163.03107109,0.00020274,2]
[386700985,1758461451124,-151.0,0.00020274,2]
[386700987,1758461451133,-151.0,0.00020274,2]
[386700989,1758461451143,-500.65471073,0.00020274,2]
[386700991,1758461451152,-165.78532979,0.00020274,2]
[386700993,1758461451161,-151.0,0.00020274,2]
[386700995,1758461451171,-500.0,0.00020274,2]
[386700997,1758461451182,-500.0,0.00020274,2]
[386700999,1758461451191,-449.0,0.00020274,2]
[386701001,1758461451202,-449.0,0.00020274,2]
[386701003,1758461451216,-151.0,0.00020274,2]
[386701005,1758461451226,-151.0,0.00020274,2]
[386701007,1758461451236,-151.0,0.00020274,2]
[386701009,1758461451246,-151.0,0.00020274,2]
[386701011,1758461451255,-151.0,0.00020274,2]
[386701013,1758461451264,-387.62033482,0.00020321,2]
[386701015,1758461451273,-310.0,0.00020331,2]
[386701017,1758461451283,-1234.74093426,0.000204,2]
[386701019,1758461451292,-151.0,0.000204,3]
[386701021,1758461451302,-1000.0,0.00020443,2]
[386701023,1758461451312,-7338.15,0.00020448,2]
[386701025,1758461451321,-310.0,0.0002045,2]
[386701027,1758461451331,-553.0,0.00020486,2]
[386701029,1758461451340,-310.0,0.00020493,2]
[386701031,1758461451349,-310.0,0.00020493,2]
[386701033,1758461451364,-1000.0,0.000205,2]
[386701035,1758461451374,-8653.83206407,0.000205,2]
[386701048,1758461451490,-11878.38912489,0.000205,2]
[386701051,1758461451505,-18522.93556216,0.000205,2]
[386701417,1758462453129,-415.94077741,0.00019078,2]
[386701442,1758462614879,178.4477198,0.00018174,2]
[386701460,1758462632763,-300.0,0.0001917,2]
[386701462,1758462632773,-300.0,0.0001917,2]
[386701464,1758462632783,-1200.0,0.0001917,2]
[386701466,1758462632792,-31.47604183,0.00019171,2]
[386701468,1758462632803,-128.52395817,0.00019171,2]
[386701470,1758462632812,-208.768462,0.00019171,2]
[386701472,1758462632822,-200.0,0.00019171,2]
[386701474,1758462632832,-383.99935303,0.00019171,2]
[386701476,1758462632841,-500.0,0.00019171,2]
[386701478,1758462632852,-250.0,0.00019171,2]
[386701480,1758462632862,-237.23154502,0.00019171,2]
[386701482,1758462632872,-500.0,0.00019171,2]
[386701484,1758462632881,-500.0,0.00019171,2]
[386701487,1758462632890,-500.0,0.00019171,2]
[386701490,1758462632900,-500.0,0.00019171,2]
[386701494,1758462632909,-251.82109047,0.00019171,2]
[386701496,1758462632919,-500.0,0.00019171,2]
[386701500,1758462632928,-601.29044898,0.00019171,2]
[386701501,1758462632940,-500.0,0.00019171,2]
[386701503,1758462632950,-1200.0,0.00019171,2]
[386701505,1758462632959,-13361.19102765,0.00019172,2]
[386701508,1758462632969,-500.0,0.00019173,2]
[386701510,1758462632979,-505.03476256,0.00019173,2]
[386701512,1758462632988,-500.0,0.00019173,2]
[386701514,1758462632997,-500.0,0.00019173,2]
[386701515,1758462633007,-500.0,0.00019173,2]
[386701517,1758462633018,-500.0,0.00019173,2]
[386701519,1758462633028,-500.0,0.00019173,2]
[386701521,1758462633038,-500.0,0.00019173,2]
[386701524,1758462633048,-500.0,0.00019173,2]
[386701525,1758462633057,-500.0,0.00019173,2]
[386701527,1758462633067,-977.36943673,0.00019177,7]
[386701530,1758462633076,-480.0,0.00019178,2]
[386701531,1758462633085,-480.0,0.00019178,2]
[386701533,1758462633095,-260.43213161,0.00019178,2]
[386701536,1758462633104,-480.0,0.00019178,2]
[386701537,1758462633114,-480.0,0.00019178,2]
[386701539,1758462633123,-482.10576425,0.00019178,2]
[386701541,1758462633133,-480.0,0.00019178,2]
[386701543,1758462633142,-480.0,0.00019178,2]
[386701544,1758462633151,-480.0,0.00019178,2]
[386701545,1758462633162,-548.41654058,0.00019178,2]
[386701546,1758462633171,-480.0,0.00019178,2]
[386701547,1758462633181,-480.0,0.00019178,2]
[386701548,1758462633190,-480.0,0.00019178,2]
[386701550,1758462633200,-501.60248268,0.00019178,2]
[386701552,1758462633210,-233.09227744,0.00019178,2]
[386701554,1758462633220,-480.0,0.00019178,2]
[386701556,1758462633230,-480.0,0.00019178,2]
[386701558,1758462633240,-480.0,0.00019178,2]
[386701560,1758462633249,-480.0,0.00019178,2]
[386701562,1758462633259,-480.0,0.00019178,2]
[386701564,1758462633268,-480.0,0.00019178,2]
[386701566,1758462633277,-331.0257373,0.00019178,2]
[386701568,1758462633287,-480.0,0.00019178,2]
[386701570,1758462633296,-480.0,0.00019178,2]
[386701572,1758462633304,-480.0,0.00019178,2]